bitfinex/quotes_ETHUSD_20260207
["timestamp","ask_amount","ask_price","bid_price","bid_amount"]
[1770470502894,1.66433717,2047.4,2046.7,1.22145198]
[1770470503495,1.60994904,2047.4,2046.2,1.63898698]
[1770470503816,2.83101116,2047.4,2046.3,1.92506934]
[1770470504014,1.66433717,2047.3,2046.3,1.92506934]
[1770470504213,1.66433717,2047.3,2046.3,0.28608236]
[1770470504387,1.66433717,2047.3,2046.1,1.22183666]
[1770470505413,1.66433717,2047.3,2046.1,2.86082364]
[1770470505580,1.61194904,2047.8,2046.5,1.63898698]
[1770470505783,0.002,2047.8,2046.8,11.83167965]
[1770470506090,0.002,2047.8,2046.9,1.18316797]
[1770470507717,0.002,2047.8,2047.0,1.22129946]
[1770470507922,0.002,2047.1,2047.0,1.22129946]
[1770470508086,0.002,2047.8,2047.0,1.22129946]
[1770470508527,0.002,2047.3,2047.0,1.22129946]
[1770470508782,0.002,2047.3,2047.1,0.72896653]
[1770470508987,0.002,2047.8,2047.1,0.72896653]
[1770470509597,0.002,2047.8,2047.3,1.2211205]
[1770470509991,0.002,2047.8,2047.2,1.22112318]
[1770470511020,1.61194904,2047.8,2047.2,1.22117377]
[1770470511196,1.61194904,2047.8,2047.1,0.72896653]
[1770470511395,1.61194904,2047.8,2047.1,1.22123891]
[1770470511986,2.83279625,2047.8,2047.0,1.22129946]
[1770470513115,1.60994904,2047.7,2047.0,1.22129946]
[1770470515731,0.002,2047.8,2047.0,1.22129946]
[1770470517011,0.002,2047.8,2046.9,4.88530187]
[1770470517210,0.002,2047.8,2047.0,0.7745648]
[1770470520521,1.61194904,2047.8,2047.1,1.2212398]
[1770470521122,1.61194904,2047.8,2047.0,1.99584297]
[1770470521425,1.60994904,2047.5,2047.0,1.22127679]
[1770470521634,1.60994904,2047.5,2047.0,0.001]
[1770470522616,1.60994904,2047.4,2047.0,0.001]
[1770470524828,1.60994904,2047.2,2047.0,0.001]
[1770470525335,3.60803503,2047.5,2047.0,0.001]
[1770470525498,2.83095125,2047.5,2047.0,0.001]
[1770470526425,1.60994904,2047.5,2047.0,0.001]
[1770470526620,0.05638813,2047.6,2047.0,0.001]
[1770470526930,1.27733122,2047.6,2047.0,0.001]
[1770470527226,2.93480638,2047.6,2047.0,0.001]
[1770470527629,3.50912318,2047.6,2047.0,0.001]
[1770470528128,0.002,2047.8,2047.0,1.71893594]
[1770470528904,0.002,2047.8,2047.1,2.93917574]
[1770470529106,0.002,2047.8,2047.2,1.71793594]
[1770470530442,0.002,2048.0,2047.5,1.72607044]
[1770470530608,2.97007515,2048.8,2047.5,1.72607044]
[1770470530809,3.76059185,2048.8,2047.7,1.72607044]
[1770470531111,1.74980619,2048.7,2047.8,1.22082234]
[1770470533323,1.74980619,2048.6,2047.7,4.88328938]
[1770470534416,0.002,2048.5,2047.7,4.88328938]
[1770470534624,0.002,2048.5,2048.0,11.12609972]
[1770470534937,0.002,2048.5,2048.1,1.11260997]
[1770470535112,0.002,2048.5,2047.8,1.72607044]
[1770470535315,0.002,2048.5,2047.9,1.22076273]
[1770470539049,0.002,2048.5,2047.9,2.94683317]
[1770470539624,0.002,2048.5,2048.0,1.72607044]
[1770470540418,0.002,2048.5,2047.9,1.22076273]
[1770470540615,0.002,2048.7,2048.2,11.12609972]
[1770470540829,1.74980619,2048.6,2048.0,0.78769647]
[1770470541052,0.05438813,2048.4,2047.8,4.88322418]
[1770470541218,0.05438813,2048.4,2047.9,1.22075818]
[1770470541418,0.05438813,2048.4,2047.9,1.83115642]
[1770470544971,1.74980619,2048.3,2047.6,1.11260997]
[1770470545261,1.74980619,2048.3,2047.4,1.22101926]
[1770470545464,1.80419432,2048.3,2047.5,1.22100082]
[1770470545762,1.80419432,2048.3,2047.2,0.001]
[1770470545763,1.80419432,2048.3,2047.4,1.2210315]
[1770470545961,1.74980619,2048.1,2047.5,1.22099973]
[1770470546555,1.74980619,2048.1,2047.2,0.001]
[1770470546735,1.74980619,2048.1,2047.4,1.22105817]
[1770470546934,1.75180619,2048.7,2047.7,1.72607044]
[1770470547245,1.75180619,2048.7,2047.9,9.40002928]
[1770470547246,0.002,2048.7,2047.9,9.40002928]
[1770470547425,0.002,2048.7,2048.0,0.94000293]
[1770470547629,0.002,2048.2,2047.7,1.72707044]
[1770470547825,0.002,2048.7,2047.7,1.72707044]
[1770470548052,1.75180619,2048.7,2047.7,1.72707044]
[1770470548250,0.002,2048.4,2047.7,1.72707044]
[1770470549264,0.002,2048.4,2047.8,1.22082234]
[1770470549445,0.002,2048.4,2047.9,0.78311822]
[1770470551463,0.002,2048.4,2048.0,1.22070312]
[1770470554652,0.002,2048.4,2047.9,2.00387954]
[1770470554966,0.002,2048.4,2047.9,1.22076132]
[1770470556176,1.71028642,2048.4,2047.9,1.22076132]
[1770470559174,0.002,2048.4,2047.9,1.22076132]
[1770470559377,1.70828642,2049.2,2048.0,11.06822118]
[1770470559550,1.70828642,2048.8,2048.1,1.22889825]
[1770470559759,1.70828642,2048.8,2047.9,1.22076132]
[1770470560772,1.70828642,2048.8,2048.1,0.001]
[1770470561082,0.002,2048.2,2048.1,0.001]
[1770470564860,0.002,2048.2,2048.1,0.301]
[1770470565065,0.002,2048.2,2047.9,1.22172345]
[1770470565265,0.002,2048.2,2047.9,0.001]
[1770470566392,0.002,2048.2,2048.0,1.22067462]
[1770470566558,0.002,2048.2,2047.9,1.2217164]
[1770470566882,0.002,2048.2,2047.9,0.001]
[1770470567790,1.71028642,2048.2,2047.5,0.001]
[1770470567956,1.70828642,2047.9,2047.3,1.22109445]
[1770470568382,1.70828642,2047.9,2047.3,1.22111891]
[1770470568668,1.71028642,2048.2,2047.4,1.22102372]
[1770470568876,1.70828642,2048.0,2047.2,0.001]
[1770470569078,2.00117941,2047.9,2047.2,0.001]
[1770470571289,3.22199802,2047.9,2047.2,0.001]
[1770470571598,2.00117941,2047.9,2047.2,0.001]
[1770470572468,0.29289299,2047.9,2047.2,0.001]
[1770470573089,2.00117941,2047.9,2047.2,0.001]
[1770470574485,1.70828642,2047.8,2047.2,0.001]
[1770470574696,2.08486922,2047.7,2046.7,1.22145299]
[1770470574992,2.08686922,2047.7,2046.8,1.22138339]
[1770470575196,2.08686922,2047.7,2046.4,1.6681919]
[1770470575400,1.70828642,2047.3,2046.6,1.22151074]
[1770470575568,1.70828642,2047.3,2046.7,1.22146587]
[1770470575771,1.70828642,2047.3,2046.6,0.61077637]
[1770470576112,1.70828642,2047.3,2046.6,1.2214798]
[1770470576287,1.70828642,2047.2,2046.3,4.88783509]
[1770470579390,1.70828642,2047.1,2046.3,4.88783509]
[1770470580179,1.70828642,2047.1,2046.3,0.001]
[1770470580436,1.70828642,2047.1,2046.1,0.001]
[1770470580569,2.48968846,2047.1,2046.2,10.62178896]
[1770470580934,1.70828642,2047.1,2046.2,1.22175968]
[1770470581467,1.70828642,2047.1,2046.0,0.001]
[1770470581468,1.70828642,2046.8,2046.0,0.001]
[1770470581691,1.76267455,2046.5,2046.0,0.001]
[1770470583211,1.76267455,2046.2,2046.0,0.001]
[1770470583671,2.98445369,2046.2,2046.0,0.001]
[1770470583867,2.98445369,2046.2,2045.8,0.001]
[1770470583868,0.29844537,2046.1,2045.8,0.001]
[1770470584984,2.00673179,2046.1,2045.8,0.001]
[1770470585487,0.29844537,2046.1,2045.8,0.001]
[1770470585683,1.70828642,2046.0,2045.8,0.001]
[1770470585897,1.70828642,2046.0,2045.5,0.001]
[1770470587690,1.63332526,2045.9,2045.5,0.001]
[1770470589689,2.85516192,2046.1,2045.5,0.001]
[1770470589891,1.63332526,2046.3,2045.5,0.001]
[1770470590112,1.27603566,2046.5,2045.5,0.001]
[1770470590286,2.18693352,2046.4,2045.5,0.001]
[1770470592327,2.79218246,2046.7,2045.5,1.58933879]
[1770470592533,2.7920228,2047.0,2045.9,1.58833879]
[1770470592731,1.57069235,2047.0,2045.9,1.58833879]
[1770470593205,1.27539611,2047.5,2046.3,1.58833879]
[1770470593405,1.8553012,2047.4,2046.4,1.1787196]
[1770470593615,1.8553012,2047.4,2046.4,2.76705839]
[1770470593904,1.8553012,2047.4,2046.4,1.1787196]
[1770470594118,3.07639264,2047.4,2046.2,2.81011574]
[1770470594325,3.07639264,2047.4,2046.3,1.58833879]
[1770470594486,1.8553012,2047.4,2046.3,1.58833879]
[1770470594691,1.57069235,2047.6,2046.4,1.58833879]
[1770470595291,0.32419467,2047.7,2046.4,1.58833879]
[1770470595495,1.54508209,2047.7,2046.4,1.58833879]
[1770470595832,0.32419467,2047.7,2046.4,1.58833879]
[1770470596203,0.32419467,2047.7,2046.6,1.58833879]
[1770470596403,0.32419467,2047.7,2046.7,1.86933245]
[1770470597033,0.002,2047.7,2046.8,1.58833879]
[1770470597406,0.002,2047.7,2047.2,1.58833879]
[1770470598304,0.002,2047.7,2047.2,1.22118014]
[1770470598697,0.002,2048.2,2047.6,1.58833879]
[1770470600197,0.002,2048.2,2047.7,1.22088196]
[1770470600399,0.002,2048.2,2047.8,0.76927486]
[1770470600601,0.002,2048.0,2047.8,0.76927486]
[1770470601420,0.002,2048.2,2047.8,0.76927486]
[1770470603400,0.002,2048.2,2047.9,1.22076273]
[1770470605005,1.22222988,2048.8,2048.1,11.78719596]
[1770470605006,0.002,2048.8,2048.1,11.78719596]
[1770470605202,0.002,2048.8,2048.2,1.1787196]
[1770470605527,0.002,2048.8,2048.3,1.22052433]
[1770470606029,0.002,2049.1,2048.3,1.22052433]
[1770470606406,1.57269235,2049.1,2048.3,1.22052433]
[1770470608731,0.002,2049.1,2048.3,1.22052433]
[1770470608932,0.002,2049.1,2048.4,0.72813413]
[1770470609226,2.79038303,2049.7,2048.5,1.58833879]
[1770470609531,1.57069235,2049.6,2048.5,1.58833879]
[1770470609740,1.57069235,2049.6,2048.8,1.22022647]
[1770470609897,1.21963944,2049.8,2048.9,1.62999895]
[1770470610104,2.79033179,2049.8,2048.9,1.62999895]
[1770470610442,2.79033235,2049.8,2048.9,1.62999895]
[1770470610734,1.57069235,2049.7,2048.9,1.62999895]
[1770470610938,1.57069235,2049.7,2048.8,1.22022647]
[1770470611630,1.62508048,2049.7,2048.8,1.22022647]
[1770470611804,1.57069235,2049.6,2048.5,1.22040517]
[1770470612128,1.57069235,2049.6,2048.5,2.80874396]
[1770470612921,1.57069235,2049.6,2048.5,1.22040517]
[1770470613111,1.62508048,2049.4,2048.4,1.94856177]
[1770470613825,1.62508048,2049.4,2048.4,1.94859273]
[1770470613826,1.62508048,2049.1,2048.4,1.94859273]
[1770470614031,1.57069235,2049.0,2048.4,1.94859455]
[1770470614226,1.57069235,2049.0,2048.4,1.22046042]
[1770470616435,1.61158319,2048.9,2048.1,1.22060361]
[1770470616735,1.61158319,2048.9,2048.3,1.22052109]
[1770470616939,1.61158319,2048.9,2048.0,0.001]
[1770470617112,1.61158319,2048.9,2048.0,1.22169065]
[1770470617318,1.61158319,2048.7,2048.1,1.22063945]
[1770470617513,0.28317403,2048.8,2048.0,0.001]
[1770470617743,1.61158319,2049.2,2048.4,1.22041062]
[1770470618041,1.21996435,2049.3,2048.3,1.2205223]
[1770470618042,1.61158319,2049.0,2048.3,1.2205223]
[1770470618407,1.61158319,2048.8,2048.0,1.22170312]
[1770470618645,2.38280315,2048.8,2048.1,1.63033728]
[1770470618809,0.05438813,2049.1,2048.0,1.22170312]
[1770470618810,1.61158319,2049.1,2048.0,1.22170312]
[1770470619009,1.61158319,2048.9,2048.0,1.22170312]
[1770470620415,1.61158319,2048.9,2048.0,0.001]
[1770470620721,2.83157634,2049.2,2048.1,11.87634321]
[1770470621227,1.61158319,2049.4,2048.2,1.67748604]
[1770470621428,1.61158319,2049.4,2048.4,1.67748604]
[1770470621620,0.28447748,2049.5,2048.5,1.67748604]
[1770470621814,0.002,2049.6,2048.5,1.67748604]
[1770470622038,2.8333406,2049.6,2048.5,1.67748604]
[1770470622614,0.002,2049.6,2048.6,2.89783164]
[1770470623025,0.002,2049.6,2048.7,11.87634321]
[1770470624723,0.002,2049.6,2048.8,1.22022647]
[1770470624910,0.002,2049.6,2048.9,1.79774756]
[1770470626416,0.002,2049.4,2048.9,1.79774756]
[1770470627136,0.002,2049.4,2049.0,1.22010736]
[1770470629252,0.002,2049.6,2049.1,1.67748604]
[1770470629438,0.002,2049.8,2049.1,1.67748604]
[1770470629758,0.3280424,2050.0,2049.3,10.19885717]
[1770470629919,0.3280424,2050.0,2049.4,1.67748604]
[1770470630253,0.3280424,2050.0,2049.2,1.30964506]
[1770470631136,0.3280424,2050.0,2049.2,2.9871311]
[1770470631441,0.3280424,2050.0,2049.3,2.89741479]
[1770470631625,0.3280424,2050.0,2049.4,0.90867749]
[1770470631944,1.66597132,2049.9,2049.0,1.22010566]
[1770470632242,1.66597132,2049.9,2048.9,1.22012253]
[1770470632540,1.66597132,2049.9,2048.8,4.88088712]
[1770470632541,1.66597132,2049.9,2049.0,1.22010707]
[1770470633333,1.61158319,2049.7,2048.7,4.88112228]
[1770470633536,1.61158319,2049.7,2048.8,0.60486465]
[1770470634548,1.61158319,2049.7,2048.6,2.89783164]
[1770470634843,1.61158319,2049.7,2048.6,1.2203456]
[1770470636346,4.93271767,2049.9,2048.8,10.19885717]
[1770470636347,1.61158319,2049.9,2048.8,10.19885717]
[1770470636520,1.61158319,2049.9,2048.8,11.87634321]
[1770470636721,1.61158319,2049.9,2048.9,1.18763432]
[1770470637832,1.61158319,2049.9,2048.9,2.86512036]
[1770470638026,1.66597132,2049.9,2048.9,1.18763432]
[1770470638244,1.66597132,2049.9,2048.6,1.2203456]
[1770470638550,1.61158319,2049.7,2048.8,0.001]
[1770470638934,1.61358319,2049.7,2048.8,0.001]
[1770470639750,0.002,2049.9,2048.9,1.67748604]
[1770470639928,0.002,2049.9,2048.8,11.87734321]
[1770470640136,0.002,2049.9,2048.9,2.86522036]
[1770470640329,1.61358319,2049.9,2049.0,1.22010736]
[1770470640752,1.61358319,2049.9,2048.9,2.40786658]
[1770470640955,1.61158319,2049.7,2048.9,2.40786658]
[1770470641332,1.61158319,2049.7,2048.8,4.88170908]
[1770470641333,1.61158319,2049.4,2048.8,0.001]
[1770470642358,1.61158319,2049.2,2048.8,0.001]
[1770470642524,1.61158319,2049.5,2048.8,0.001]
[1770470642729,1.61158319,2049.4,2048.8,0.001]
[1770470644442,2.83151194,2049.3,2048.8,0.001]
[1770470644748,1.61158319,2049.2,2048.8,0.001]
[1770470644959,2.38268489,2049.2,2048.8,0.001]
[1770470645146,2.38268489,2049.2,2048.5,0.001]
[1770470645147,1.61158319,2049.1,2048.5,0.001]
[1770470646232,1.65504905,2048.8,2048.5,0.001]
[1770470646532,2.87530062,2048.8,2048.5,0.001]
[1770470646851,1.65504905,2049.0,2048.3,0.001]
[1770470647055,1.27443595,2049.1,2048.0,0.001]
[1770470647056,1.65504905,2048.7,2048.0,0.001]
[1770470647629,1.65504905,2048.1,2047.2,1.22213387]
[1770470647939,1.65504905,2048.1,2047.2,4.8855403]
[1770470648144,1.65504905,2048.1,2047.3,0.48855403]
[1770470648457,1.65504905,2048.1,2047.3,1.70966328]
[1770470648755,1.65504905,2047.9,2047.2,0.001]
[1770470649856,2.93006309,2048.2,2047.2,0.001]
[1770470650961,1.56568216,2047.8,2047.2,0.001]
[1770470651742,0.05438813,2047.9,2047.2,0.001]
[1770470651941,1.56568216,2048.1,2047.2,0.001]
[1770470652269,1.84975178,2048.0,2047.8,0.001]
[1770470652433,1.84975178,2048.0,2047.2,0.001]
[1770470652850,3.07046103,2048.0,2047.2,0.001]
[1770470653356,1.84975178,2048.0,2047.2,0.001]
[1770470653534,3.07045888,2048.0,2047.2,0.001]
[1770470653736,0.7953068,2047.9,2047.2,0.001]
[1770470656347,2.01607165,2047.9,2047.2,0.001]
[1770470659270,1.56568216,2047.8,2047.2,0.001]
[1770470659564,2.07045978,2047.9,2047.2,0.001]
[1770470660533,3.63614194,2047.9,2047.2,0.001]
[1770470660746,0.88030985,2047.8,2047.2,0.001]
[1770470661957,1.56568216,2047.7,2047.2,0.001]
[1770470663263,2.78658591,2047.7,2047.2,0.001]
[1770470664369,1.56568216,2047.6,2047.4,0.001]
[1770470664565,0.27865859,2047.5,2047.4,0.001]
[1770470664867,2.788627,2047.6,2047.2,0.001]
[1770470665037,1.56568216,2047.5,2047.2,0.001]
[1770470666442,0.002,2047.6,2047.2,0.001]
[1770470670652,0.002,2047.8,2047.2,1.5239234]
[1770470672273,0.002,2047.8,2047.3,1.2211205]
[1770470672572,0.002,2047.8,2047.4,0.76295259]
[1770470672976,0.004,2047.8,2047.4,0.76295259]
[1770470673573,0.004,2047.8,2047.2,1.2221666]
[1770470673574,0.002,2047.7,2047.2,1.2221666]
[1770470675081,1.56768216,2047.6,2047.2,0.001]
[1770470675465,0.002,2047.5,2047.2,0.001]
[1770470675665,0.002,2047.8,2047.2,0.001]
[1770470675905,0.002,2047.7,2047.2,0.001]
[1770470676056,0.002,2047.7,2046.9,0.001]
[1770470676057,1.63544254,2047.5,2046.9,0.001]
[1770470676751,1.63544254,2047.5,2047.4,0.001]
[1770470677081,2.85644376,2047.5,2047.4,0.001]
[1770470677468,2.85644376,2047.5,2046.9,0.001]
[1770470677792,0.002,2047.4,2046.9,0.001]
[1770470678294,2.41187005,2047.4,2046.9,0.001]
[1770470678874,2.40987005,2047.4,2046.9,0.001]
[1770470679776,0.002,2047.3,2046.9,0.001]
[1770470679966,0.002,2047.5,2046.9,0.001]
[1770470681297,0.002,2047.5,2046.9,1.63282616]
[1770470681796,0.002,2047.5,2047.0,1.22129946]
[1770470681971,0.002,2047.6,2047.1,0.77393235]
[1770470682171,0.004,2047.6,2047.1,0.77393235]
[1770470683362,0.002,2047.6,2047.1,0.77393235]
[1770470683570,0.002,2047.5,2047.1,0.77393235]
[1770470683771,0.002,2047.5,2047.2,0.3627058]
[1770470683972,0.002,2047.5,2047.3,1.2211205]
[1770470684168,0.002,2047.5,2047.2,1.58383955]
[1770470685791,0.002,2047.6,2047.2,1.58383955]
[1770470686108,1.63744254,2048.5,2047.5,1.63182616]
[1770470686269,1.63544254,2048.3,2047.3,0.72425943]
[1770470687302,1.63544254,2048.0,2047.3,0.72425943]
[1770470687880,1.63544254,2047.8,2047.3,0.72425943]
[1770470688090,1.63544254,2047.8,2047.2,0.3627058]
[1770470688297,1.63544254,2047.8,2047.1,1.22121867]
[1770470688471,1.68983067,2047.8,2047.0,1.221259]
[1770470688808,1.68983067,2047.8,2047.1,1.22123544]
[1770470689204,1.68983067,2047.8,2047.1,1.22223544]
[1770470689389,0.002,2047.3,2047.1,0.001]
[1770470690600,2.85785754,2048.5,2047.5,1.63182616]
[1770470690900,1.63544254,2048.4,2047.2,1.63182616]
[1770470691213,0.002,2048.5,2047.5,1.63182616]
[1770470691511,0.002,2048.5,2047.6,1.10240422]
[1770470692210,0.002,2048.5,2047.7,1.22088196]
[1770470692516,1.63744254,2048.5,2047.7,1.22088196]
[1770470694416,0.002,2048.5,2047.7,1.22088196]
[1770470694605,0.002,2048.5,2047.8,1.63182616]
[1770470694811,0.002,2048.5,2047.9,0.28527081]
[1770470695819,0.002,2048.7,2048.0,1.63182616]
[1770470696016,1.63544254,2049.2,2048.0,0.31020725]
[1770470696230,1.63544254,2049.2,2047.9,1.91709697]
[1770470696721,2.85547586,2049.2,2048.0,2.85252928]
[1770470697022,0.77896323,2049.1,2048.1,0.80206126]
[1770470697611,0.77896323,2049.1,2048.1,2.43388742]
[1770470698000,1.63544254,2049.0,2048.1,0.80206126]
[1770470698693,1.63544254,2049.0,2048.2,1.22058392]
[1770470698694,2.85556942,2049.0,2048.2,1.22058392]
[1770470698899,2.85540412,2049.3,2048.2,2.85241008]
[1770470699205,2.85540412,2049.3,2048.3,2.48551022]
[1770470699206,1.63544254,2049.3,2048.3,2.48551022]
[1770470699401,2.85537328,2049.3,2048.3,2.48551022]
[1770470699908,1.63544254,2049.3,2048.3,2.48551022]
[1770470700113,2.85538032,2049.3,2048.3,2.48551022]
[1770470700315,0.28553803,2049.2,2048.4,0.37060941]
[1770470700712,1.63544254,2049.3,2048.5,1.22040517]
[1770470700916,2.8553823,2049.3,2048.5,1.22040517]
[1770470701212,1.63544254,2049.2,2048.5,1.22040517]
[1770470701604,1.63544254,2048.7,2048.0,1.22068956]
[1770470701933,1.63544254,2048.7,2048.0,1.22069961]
[1770470702295,1.63544254,2048.7,2047.7,0.001]
[1770470702539,1.63544254,2048.1,2047.3,1.22108075]
[1770470702701,1.63544254,2048.1,2047.1,0.001]
[1770470703036,0.29104736,2048.0,2047.5,0.001]
[1770470703712,1.63544254,2047.8,2047.1,0.001]
[1770470705098,1.63544254,2048.9,2047.6,1.63182616]
[1770470705321,1.68983067,2048.9,2047.3,1.63182616]
[1770470705509,1.63544254,2048.7,2047.4,2.73423038]
[1770470705695,0.2909938,2048.8,2047.6,1.63182616]
[1770470705901,1.56470449,2048.5,2047.4,1.10240422]
[1770470706136,1.56470449,2048.8,2047.7,9.392216]
[1770470706342,1.56470449,2048.8,2047.2,1.6646145]
[1770470706630,1.56470449,2048.8,2047.4,1.6646145]
[1770470707006,1.56470449,2048.8,2047.6,1.22094159]
[1770470707221,1.56470449,2048.8,2047.6,2.88555609]
[1770470707411,1.56470449,2048.8,2047.7,0.77693225]
[1770470708815,2.84117302,2049.1,2047.8,1.6646145]
[1770470709233,2.84114971,2049.1,2048.0,1.6646145]
[1770470709434,1.62109262,2049.1,2048.0,1.6646145]
[1770470709737,0.002,2049.1,2048.0,1.6646145]
[1770470710034,0.002,2049.1,2048.1,1.95315222]
[1770470711519,0.002,2049.1,2048.3,1.52737029]
[1770470711840,1.52863169,2049.1,2048.2,1.22058392]
[1770470712256,1.58101982,2049.0,2048.2,1.22058392]
[1770470712427,1.58101982,2049.0,2047.7,5.66027652]
[1770470712742,1.58101982,2049.0,2048.1,1.22064314]
[1770470713151,1.58101982,2049.0,2047.8,1.7868219]
[1770470713318,1.52663169,2048.6,2047.9,1.22076005]
[1770470713520,0.05438813,2048.7,2047.6,4.88375759]
[1770470713724,1.52663169,2048.6,2047.5,1.22100122]
[1770470713914,1.52663169,2048.9,2047.6,0.76323764]
[1770470714116,1.52663169,2048.5,2047.6,0.76323764]
[1770470715521,1.52663169,2048.5,2047.7,1.22188196]
[1770470715846,1.52663169,2048.4,2047.7,1.22188196]
[1770470716248,1.52663169,2048.8,2047.7,1.22188196]
[1770470716442,1.52663169,2048.8,2047.8,0.68687334]
[1770470717725,1.52663169,2048.8,2047.9,1.22076273]
[1770470718459,0.002,2048.9,2047.9,1.22076273]
[1770470720328,0.002,2048.9,2047.9,5.07076273]
[1770470721361,0.002,2048.9,2048.0,3.85]
[1770470721536,0.002,2048.9,2048.1,0.50707627]
[1770470722438,0.002,2048.9,2048.2,1.22058392]
[1770470722952,1.52663169,2048.7,2048.1,1.22064043]
[1770470723123,0.002,2048.9,2048.1,1.22064043]
[1770470725332,0.002,2048.9,2048.0,4.88281145]
[1770470725527,0.002,2048.9,2048.1,0.64101817]
[1770470726654,0.002,2048.9,2048.2,5.37737029]
[1770470727354,0.002,2049.1,2048.4,2.74783504]
[1770470728331,0.002,2049.1,2048.4,1.22046475]
[1770470729466,0.002,2048.7,2048.4,1.22046475]
[1770470729759,0.002,2048.7,2048.4,2.70398303]
[1770470729970,0.002,2049.1,2048.4,2.70398303]
[1770470732455,0.002,2049.1,2048.5,3.85]
[1770470733677,0.002,2049.1,2048.6,3.85]
[1770470734746,0.002,2049.3,2048.7,1.22028603]
[1770470734949,0.002,2049.3,2048.7,3.28539335]
[1770470735663,0.002,2049.3,2048.7,1.75802306]
[1770470736032,0.002,2049.3,2048.7,3.32029327]
[1770470737990,0.002,2049.3,2048.5,4.88114414]
[1770470737991,1.53038792,2049.3,2048.5,1.22035681]
[1770470738272,1.53038792,2049.3,2048.6,1.22033643]
[1770470738437,1.53038792,2049.3,2048.4,1.2204232]
[1770470738638,1.53038792,2049.3,2048.5,1.220405]
[1770470739368,1.52838792,2049.1,2048.3,0.001]
[1770470739660,0.27483762,2049.0,2048.3,0.001]
[1770470741867,1.22196886,2049.3,2048.3,0.001]
[1770470741868,0.002,2049.3,2048.3,0.001]
[1770470742451,0.002,2049.3,2048.9,0.001]
[1770470742655,0.002,2049.1,2048.9,0.001]
[1770470747394,1.53038792,2049.1,2048.6,0.001]
[1770470748806,2.75045833,2049.1,2048.6,0.001]
[1770470748961,0.27504583,2049.0,2048.6,0.001]
[1770470751488,1.80343375,2049.0,2048.6,0.001]
[1770470752988,1.52838792,2048.9,2048.3,0.001]
[1770470754689,3.02354599,2049.0,2048.3,0.001]
[1770470754897,0.3025546,2048.9,2048.3,0.001]
[1770470755687,0.3025546,2048.9,2048.8,0.001]
[1770470757977,0.002,2049.0,2048.8,0.001]
[1770470758173,1.52838792,2048.9,2048.5,0.001]
[1770470758495,1.52838792,2048.9,2048.3,0.001]
[1770470758896,1.58277605,2048.9,2048.3,0.001]
[1770470759095,3.02915247,2048.8,2048.3,0.001]
[1770470759394,1.52838792,2048.7,2048.3,0.001]
[1770470760094,1.53038792,2049.0,2048.3,0.001]
[1770470760682,0.002,2049.0,2048.3,0.001]
[1770470760880,0.002,2049.0,2048.3,1.56327021]
[1770470761096,0.002,2049.0,2048.5,1.22040517]
[1770470761313,1.53038792,2049.0,2048.4,2.39377045]
[1770470761476,1.52838792,2048.8,2048.0,1.22065609]
[1770470761675,1.52838792,2048.8,2048.2,1.22057549]
[1770470761994,1.52838792,2048.8,2048.1,1.22060303]
[1770470762506,1.52838792,2048.8,2047.9,1.22073571]
[1770470762707,1.52838792,2048.8,2047.9,1.22074254]
[1770470762999,0.05438813,2048.9,2047.7,0.001]
[1770470763000,1.52838792,2048.5,2047.7,0.001]
[1770470763202,0.05438813,2048.6,2047.7,1.22185588]
[1770470763203,1.52838792,2048.3,2047.7,1.22185588]
[1770470763371,1.80327319,2048.3,2047.7,1.22185588]
[1770470764172,1.80327319,2048.3,2047.7,0.001]
[1770470765403,3.0238434,2048.3,2047.7,0.001]
[1770470765890,1.52838792,2048.2,2047.7,0.001]
[1770470766090,1.49543975,2048.3,2047.7,0.001]
[1770470766404,2.84331152,2048.3,2047.7,0.001]
[1770470767307,1.62275704,2048.3,2047.7,0.001]
[1770470768606,1.62275704,2048.1,2047.5,0.001]
[1770470768845,1.62275704,2048.1,2047.9,0.001]
[1770470768987,1.62275704,2048.1,2047.5,0.001]
[1770470769188,1.62275704,2048.0,2047.5,0.001]
[1770470769404,1.90710099,2047.9,2047.7,0.001]
[1770470769782,1.90710099,2047.9,2047.5,0.001]
[1770470769982,1.90710099,2047.9,2047.2,0.001]
[1770470770191,4.93696222,2048.3,2047.2,0.001]
[1770470770192,1.22032931,2048.7,2047.5,1.54495112]
[1770470770386,2.7878981,2048.7,2047.5,1.54495112]
[1770470770825,2.7878981,2048.7,2047.5,5.39495112]
[1770470771222,1.22225508,2048.8,2047.7,1.54495112]
[1770470771417,0.61573181,2048.7,2047.8,0.27658927]
[1770470771997,2.1833006,2048.7,2047.8,0.27658927]
[1770470772493,2.1833006,2048.7,2047.6,1.22094159]
[1770470772821,1.56756879,2048.6,2047.6,1.22094159]
[1770470774428,1.22223187,2048.8,2047.6,1.54495112]
[1770470774799,2.78980066,2048.8,2047.6,1.54495112]
[1770470775319,1.56956879,2048.8,2047.6,1.54495112]
[1770470775509,2.34223641,2048.8,2047.7,2.18782287]
[1770470775721,3.5624705,2048.8,2047.7,2.18782287]
[1770470776110,4.88252994,2049.0,2048.4,1.54495112]
[1770470776111,0.002,2049.0,2048.4,1.54495112]
[1770470776501,0.002,2049.0,2048.5,1.22040517]
[1770470776702,0.002,2049.0,2048.6,1.54495112]
[1770470778025,0.002,2049.0,2048.5,1.22040517]
[1770470778217,0.002,2049.0,2048.5,2.47326494]
[1770470778605,0.002,2049.0,2048.5,4.01821606]
[1770470779501,0.002,2049.0,2048.6,1.54495112]
[1770470780298,0.002,2049.1,2048.6,1.54495112]
[1770470781630,0.002,2049.1,2048.7,1.22028603]
[1770470781832,0.002,2049.1,2048.8,0.76463813]
[1770470782336,0.002,2049.0,2048.8,0.76463813]
[1770470783542,0.002,2049.6,2048.8,0.76463813]
[1770470783937,1.56956879,2049.6,2048.9,1.22016691]
[1770470785241,1.56956879,2049.3,2048.5,1.22035405]
[1770470785446,1.56956879,2049.3,2048.6,1.22033725]
[1770470785621,1.56956879,2049.3,2048.6,1.22033611]
[1770470786028,1.56756879,2049.2,2048.0,1.22070312]
[1770470786231,1.56756879,2049.1,2048.1,1.70455314]
[1770470786636,0.002,2049.3,2048.2,1.54495112]
[1770470786836,1.56756879,2049.2,2048.1,1.70455314]